bitfinex/quotes_BTCUSD_20241203
["timestamp","ask_amount","ask_price","bid_price","bid_amount"]
[1733227557721,0.210674,94934.0,94925.0,0.18181259]
[1733227557941,0.00349349,94933.0,94926.0,0.00186435]
[1733227559095,0.00449349,94933.0,94926.0,0.01086435]
[1733227559799,0.00549349,94933.0,94926.0,0.01686435]
[1733227560287,0.210677,94932.0,94926.0,0.01686435]
[1733227560522,0.002,94933.0,94926.0,0.01686435]
[1733227560746,0.0036626,94931.0,94926.0,0.01686435]
[1733227560968,0.00366159,94932.0,94926.0,0.01686435]
[1733227561213,0.210679,94931.0,94926.0,0.01686435]
[1733227561448,0.00366159,94931.0,94926.0,0.01686435]
[1733227561683,0.00366159,94931.0,94926.0,0.01086435]
[1733227561907,0.00365956,94930.0,94926.0,0.01486435]
[1733227562133,0.00365956,94930.0,94926.0,0.00586435]
[1733227562395,0.001,94932.0,94926.0,0.00986435]
[1733227562845,0.00365956,94931.0,94926.0,0.00186435]
[1733227563071,0.00565956,94931.0,94926.0,0.01386435]
[1733227563318,0.002,94931.0,94926.0,0.01386435]
[1733227563547,0.21433853,94930.0,94926.0,0.00186435]
[1733227563798,0.42502053,94930.0,94929.0,0.14961811]
[1733227565002,0.42602053,94930.0,94929.0,0.14961811]
[1733227565252,0.21533853,94930.0,94929.0,0.14961811]
[1733227565716,0.21633853,94930.0,94929.0,0.16161811]
[1733227565948,0.21733853,94930.0,94929.0,0.16161811]
[1733227567139,0.00815762,94930.0,94929.0,0.16161811]
[1733227571247,0.07234844,94930.0,94929.0,0.16161811]
[1733227571731,0.00815762,94930.0,94929.0,0.16161811]
[1733227575792,0.00627173,94930.0,94929.0,0.16161811]
[1733227576682,0.00627173,94930.0,94929.0,0.15695377]
[1733227576903,0.00627173,94930.0,94929.0,0.14923595]
[1733227577593,0.00527173,94930.0,94929.0,0.14523595]
[1733227577844,0.00527173,94930.0,94929.0,0.14923595]
[1733227578084,0.00527173,94930.0,94929.0,0.37871291]
[1733227578085,0.001,94930.0,94929.0,0.37871291]
[1733227578307,0.0017276,94935.0,94934.0,0.62420795]
[1733227578538,0.0017276,94935.0,94934.0,0.77552054]
[1733227578774,0.0017276,94935.0,94934.0,1.05966058]
[1733227578996,0.0017276,94935.0,94934.0,0.77552054]
[1733227579458,0.0017276,94935.0,94934.0,0.97552054]
[1733227579678,0.0017276,94935.0,94934.0,0.95174725]
[1733227579901,0.0027276,94935.0,94934.0,0.92455789]
[1733227580358,0.00820311,94943.0,94942.0,0.4899273]
[1733227580565,0.00820311,94943.0,94942.0,0.72483989]
[1733227581775,0.00920311,94943.0,94942.0,0.73183989]
[1733227582010,0.00920311,94943.0,94942.0,0.94083989]
[1733227582011,0.01020311,94943.0,94942.0,0.94083989]
[1733227582234,0.00920311,94943.0,94942.0,0.93383989]
[1733227582707,0.01020311,94943.0,94942.0,0.94283989]
[1733227585749,0.01020311,94943.0,94942.0,1.22649373]
[1733227586427,0.01020311,94943.0,94942.0,1.09283989]
[1733227586643,0.01020311,94943.0,94942.0,1.37643812]
[1733227586860,0.01020311,94943.0,94942.0,1.11583989]
[1733227587563,0.01020311,94943.0,94942.0,1.53440087]
[1733227587776,0.01020311,94943.0,94942.0,1.11583989]
[1733227588729,0.01020311,94943.0,94942.0,1.53426849]
[1733227589403,0.01020311,94943.0,94942.0,1.11583989]
[1733227589650,0.01020311,94943.0,94942.0,1.53415781]
[1733227590136,0.01020311,94943.0,94942.0,1.51115781]
[1733227590370,0.01020311,94943.0,94942.0,1.09283989]
[1733227592396,0.01020311,94943.0,94942.0,1.11583989]
[1733227592842,0.002,94943.0,94942.0,1.10763678]
[1733227593310,0.0037276,94943.0,94942.0,1.10763678]
[1733227595012,0.0037276,94943.0,94942.0,1.10723678]
[1733227596152,0.00346022,94943.0,94942.0,1.10723678]
[1733227599559,0.00346022,94943.0,94942.0,1.21793678]
[1733227601768,0.00346022,94943.0,94942.0,1.10723678]
[1733227604238,0.00346022,94943.0,94942.0,1.80723678]
[1733227605763,0.00346022,94943.0,94942.0,1.10723678]
[1733227606843,0.00346022,94943.0,94942.0,1.10810048]
[1733227610386,0.00346022,94943.0,94942.0,1.05930048]
[1733227610612,0.00346022,94943.0,94942.0,1.092139]
[1733227616584,0.00346022,94943.0,94942.0,1.51040795]
[1733227617728,0.00346022,94943.0,94942.0,1.092139]
[1733227622299,0.12806022,94943.0,94942.0,0.13097552]
[1733227622526,0.17070683,94943.0,94942.0,0.55008927]
[1733227622770,0.17512569,94943.0,94942.0,0.098137]
[1733227622995,0.17512569,94943.0,94942.0,0.38211873]
[1733227623227,0.17439307,94943.0,94942.0,0.089137]
[1733227623662,0.17339307,94943.0,94942.0,0.089137]
[1733227623879,0.17339307,94943.0,94942.0,0.080137]
[1733227624330,0.17439307,94943.0,94942.0,0.093137]
[1733227625681,0.17339307,94943.0,94942.0,0.07995898]
[1733227625911,0.17312467,94943.0,94942.0,0.07995898]
[1733227626139,0.17312467,94943.0,94942.0,0.08195898]
[1733227626369,0.17312467,94943.0,94942.0,0.07995898]
[1733227626634,0.17312467,94943.0,94942.0,0.08195898]
[1733227626854,0.13908117,94943.0,94942.0,0.08195898]
[1733227627288,0.14008117,94943.0,94942.0,0.08195898]
[1733227627512,0.14008117,94943.0,94942.0,0.07995898]
[1733227628396,0.14008117,94943.0,94942.0,0.08095898]
[1733227628862,0.19639147,94943.0,94942.0,0.08095898]
[1733227630206,0.19539147,94943.0,94942.0,0.07995898]
[1733227630435,0.19539147,94943.0,94942.0,0.08095898]
[1733227630659,0.19639147,94943.0,94942.0,0.08095898]
[1733227630880,0.19539147,94943.0,94942.0,0.07995898]
[1733227631319,0.19539147,94943.0,94942.0,0.08095898]
[1733227631825,0.19539147,94943.0,94942.0,0.07995898]
[1733227632050,0.19539147,94943.0,94942.0,0.08195898]
[1733227632290,0.19639147,94943.0,94942.0,0.08195898]
[1733227632507,0.14008117,94943.0,94942.0,0.08195898]
[1733227632714,0.13908117,94943.0,94942.0,0.08195898]
[1733227633179,0.13908117,94943.0,94942.0,0.08395898]
[1733227634328,0.13908117,94943.0,94942.0,0.00468568]
[1733227634547,0.13908117,94943.0,94942.0,0.00268568]
[1733227634973,0.19629147,94943.0,94942.0,0.00268568]
[1733227635835,0.19629147,94943.0,94942.0,0.00068568]
[1733227636273,0.19829147,94943.0,94942.0,0.00068568]
[1733227636512,0.19729147,94943.0,94942.0,0.00068568]
[1733227636738,0.19529147,94943.0,94942.0,0.00068568]
[1733227636965,0.19929147,94943.0,94942.0,0.00068568]
[1733227637213,0.19629147,94943.0,94942.0,0.00068568]
[1733227637428,0.19529147,94943.0,94942.0,0.00068568]
[1733227637661,0.19629147,94943.0,94942.0,0.00068568]
[1733227638104,0.19529147,94943.0,94942.0,0.00068568]
[1733227638849,0.14108117,94943.0,94942.0,0.00068568]
[1733227639089,0.13908117,94943.0,94942.0,0.00068568]
[1733227639318,0.00587806,94943.0,94942.0,0.07995898]
[1733227639616,0.00787806,94943.0,94942.0,0.07995898]
[1733227639705,0.00587806,94943.0,94942.0,0.07995898]
[1733227640132,0.00587806,94943.0,94942.0,0.08195898]
[1733227640345,0.00587806,94943.0,94942.0,0.07995898]
[1733227640827,0.00667314,94943.0,94942.0,0.08495898]
[1733227641269,0.00800309,94943.0,94942.0,0.08495898]
[1733227641910,0.00800309,94943.0,94942.0,0.08795898]
[1733227642173,0.21865509,94943.0,94942.0,0.08495898]
[1733227642576,0.21865509,94943.0,94942.0,0.09295898]
[1733227645133,0.25793751,94943.0,94942.0,0.09295898]
[1733227645351,0.21865509,94943.0,94942.0,0.09295898]
[1733227648006,0.00540892,94943.0,94942.0,0.09295898]
[1733227648209,0.21606092,94943.0,94942.0,0.09295898]
[1733227648550,0.0017288,94944.0,94942.0,0.09295898]
[1733227648754,0.00486986,94943.0,94942.0,0.09295898]
[1733227649162,0.00437926,94943.0,94942.0,0.09295898]
[1733227649373,0.210646,94946.0,94942.0,0.08795898]
[1733227649570,0.00438149,94943.0,94942.0,0.08795898]
[1733227649781,0.00860311,94948.0,94942.0,0.08795898]
[1733227649782,0.210645,94947.0,94942.0,0.08795898]
[1733227650027,0.29562933,94943.0,94942.0,0.09295898]
[1733227650213,0.30005511,94943.0,94942.0,0.09295898]
[1733227650427,0.09367923,94943.0,94942.0,0.08795898]
[1733227650961,0.21493805,94943.0,94942.0,0.09295898]
[1733227651597,0.210648,94945.0,94942.0,0.09295898]
[1733227651807,0.04818062,94943.0,94942.0,0.09295898]
[1733227652010,0.02192481,94946.0,94942.0,0.08495898]
[1733227652221,0.21373885,94943.0,94942.0,0.08495898]
[1733227652459,0.210652,94943.0,94942.0,0.07995898]
[1733227652665,0.00481013,94943.0,94942.0,0.08695898]
[1733227652871,0.00481013,94943.0,94942.0,0.09195898]
[1733227653086,0.41073453,94943.0,94942.0,0.01268568]
[1733227653304,0.51544712,94943.0,94942.0,0.00768568]
[1733227653489,0.30479512,94943.0,94942.0,0.00068568]
[1733227653737,0.360681,94930.0,94929.0,0.0008638]
[1733227653949,0.31089359,94930.0,94929.0,0.0008638]
[1733227654163,0.45663595,94930.0,94929.0,0.0008638]
[1733227654401,0.46731695,94930.0,94929.0,0.0008638]
[1733227655095,0.37202954,94930.0,94929.0,0.0008638]
[1733227655303,0.31539359,94930.0,94929.0,0.0008638]
[1733227655515,0.10755614,94930.0,94929.0,0.0008638]
[1733227655929,0.01140041,94930.0,94929.0,0.0008638]
[1733227656134,0.22562597,94930.0,94929.0,0.0008638]
[1733227656347,0.22208141,94930.0,94929.0,0.0008638]
[1733227656549,0.15,94933.0,94929.0,0.0008638]
[1733227656759,0.04220814,94930.0,94929.0,0.0038638]
[1733227656976,0.210681,94930.0,94929.0,0.0048638]
[1733227657387,0.055781,94930.0,94929.0,0.0048638]
[1733227657623,0.210666,94937.0,94929.0,0.0038638]
[1733227658075,0.0451,94939.0,94930.0,0.0792733]
[1733227658278,0.210642,94948.0,94934.0,0.1587733]
[1733227658501,0.210651,94944.0,94934.0,0.1587733]
[1733227658702,0.15,94959.0,94934.0,0.1587733]
[1733227658949,0.210661,94939.0,94934.0,0.1587733]
[1733227659154,0.421238,94958.0,94934.0,0.1587733]
[1733227659371,0.212661,94939.0,94934.0,0.1587733]
[1733227659580,0.21064,94949.0,94934.0,0.1587733]
[1733227659790,0.21066,94940.0,94934.0,0.1587733]
[1733227660001,0.21066,94940.0,94934.0,0.1597733]
[1733227660237,0.001,94939.0,94934.0,0.1587733]
[1733227660439,0.10283146,94957.0,94934.0,0.1587733]
[1733227660654,0.07198576,94956.0,94934.0,0.1587733]
[1733227660866,0.210653,94943.0,94934.0,0.1587733]
[1733227661305,0.002,94940.0,94934.0,0.1587733]
[1733227661805,0.002,94939.0,94934.0,0.1587733]
[1733227662053,0.002,94940.0,94934.0,0.1587733]
[1733227662262,0.210661,94939.0,94931.0,0.05]
[1733227662692,0.210653,94943.0,94931.0,0.05]
[1733227662892,0.210666,94937.0,94931.0,0.05]
[1733227663546,0.210666,94937.0,94929.0,0.0008638]
[1733227663965,0.210675,94933.0,94929.0,0.0008638]
[1733227664392,0.210666,94937.0,94929.0,0.0008638]
[1733227664604,0.0422323,94936.0,94929.0,0.0008638]
[1733227664832,0.210671,94935.0,94934.0,0.0008637]
[1733227665727,0.211666,94937.0,94934.0,0.0008637]
[1733227666164,0.210666,94937.0,94934.0,0.0008637]
[1733227666388,0.0017274,94945.0,94934.0,0.0008637]
[1733227666389,0.210657,94941.0,94934.0,0.0008637]
[1733227666629,0.15,94943.0,94935.0,0.0765]
[1733227667920,0.0017274,94945.0,94935.0,0.0765]
[1733227668648,0.15,94943.0,94935.0,0.0765]
[1733227668928,0.001,94937.0,94935.0,0.0765]
[1733227669163,0.154,94943.0,94935.0,0.0765]
[1733227669427,0.15,94943.0,94935.0,0.0765]
[1733227669950,0.0047274,94945.0,94935.0,0.0765]
[1733227670197,0.001,94937.0,94935.0,0.0765]
[1733227671694,0.0017274,94945.0,94935.0,0.0765]
[1733227672141,0.003,94943.0,94935.0,0.0765]
[1733227672381,0.15,94943.0,94935.0,0.0765]
[1733227672847,0.001,94937.0,94935.0,0.0765]
[1733227673112,0.0151,94936.0,94935.0,0.0765]
[1733227673570,0.0151,94936.0,94934.0,0.0008637]
[1733227674712,0.21067,94935.0,94934.0,0.0008637]
[1733227675875,0.21067,94935.0,94934.0,0.0018637]
[1733227678144,0.0151,94936.0,94934.0,0.0018637]
[1733227678364,0.210667,94937.0,94934.0,0.0018637]
[1733227678842,0.15,94943.0,94934.0,0.0018637]
[1733227679101,0.210654,94942.0,94935.0,0.0798]
[1733227679839,0.001,94937.0,94935.0,0.0798]
[1733227680095,0.421309,94942.0,94935.0,0.0798]
[1733227680373,0.210664,94938.0,94935.0,0.0798]
[1733227681818,0.43416285,94938.0,94935.0,0.0798]
[1733227682057,0.43516285,94938.0,94934.0,0.0008637]
[1733227682525,0.22449885,94938.0,94934.0,0.0008637]
[1733227683004,0.211664,94938.0,94934.0,0.0008637]
[1733227683245,0.422329,94938.0,94934.0,0.0008637]
[1733227683519,0.421329,94938.0,94934.0,0.0008637]
[1733227684472,0.210664,94938.0,94934.0,0.0008637]
[1733227684980,0.211664,94938.0,94934.0,0.0008637]
[1733227685482,0.001,94938.0,94934.0,0.0008637]
[1733227685716,0.001,94938.0,94935.0,0.1565733]
[1733227686430,0.001,94938.0,94937.0,0.1292733]
[1733227686675,0.0017274,94945.0,94938.0,0.0773]
[1733227688085,0.0017274,94945.0,94938.0,0.0763]
[1733227688770,0.0017274,94945.0,94938.0,0.0813]
[1733227688986,0.0017274,94945.0,94938.0,0.0833]
[1733227691782,0.2090846,94953.0,94938.0,0.0833]
[1733227692034,0.28711726,94953.0,94938.0,0.0833]
[1733227692258,0.28711726,94953.0,94941.0,0.0792733]
[1733227692259,0.49774726,94953.0,94941.0,0.0792733]
[1733227692505,0.210625,94956.0,94941.0,0.0792733]
[1733227692735,0.210639,94950.0,94938.0,0.1605733]
[1733227692962,0.210639,94950.0,94941.0,0.0792733]
[1733227693184,0.210639,94950.0,94938.0,0.1565733]
[1733227693408,0.0210639,94949.0,94938.0,0.0773]
[1733227693621,0.10471259,94948.0,94938.0,0.0773]
[1733227693843,0.210654,94943.0,94938.0,0.0773]
[1733227694274,0.210646,94946.0,94938.0,0.0773]
[1733227694491,0.31535859,94946.0,94938.0,0.0773]
[1733227694720,0.34689445,94946.0,94938.0,0.0773]
[1733227694944,0.52600459,94946.0,94938.0,0.0763]
[1733227695174,0.31535859,94946.0,94938.0,0.0763]
[1733227695408,0.31535859,94946.0,94938.0,0.0823]
[1733227695640,0.31535859,94946.0,94938.0,0.0763]
[1733227695871,0.31835859,94946.0,94938.0,0.0763]
[1733227696099,0.210654,94943.0,94938.0,0.0763]
[1733227696349,0.210654,94942.0,94938.0,0.0763]
[1733227697256,0.03183586,94945.0,94938.0,0.0763]
[1733227697690,0.210654,94942.0,94938.0,0.0763]
[1733227697909,0.03183586,94945.0,94938.0,0.0763]
[1733227698113,0.03491945,94944.0,94938.0,0.0763]
[1733227698331,0.010666,94937.0,94934.0,0.0008637]
[1733227698543,0.210657,94941.0,94934.0,0.0008637]
[1733227698818,0.210652,94943.0,94934.0,0.0008637]
[1733227699045,0.03491945,94944.0,94934.0,0.0008637]
[1733227699046,0.422309,94942.0,94934.0,0.0008637]
[1733227699261,0.210654,94942.0,94934.0,0.0008637]
[1733227699700,0.210654,94942.0,94934.0,0.0028637]
[1733227699917,0.03491945,94944.0,94934.0,0.0028637]
[1733227700148,0.210655,94942.0,94935.0,0.0008636]
[1733227700389,0.15,94945.0,94935.0,0.0008636]
[1733227700607,0.21065,94944.0,94935.0,0.0008636]
[1733227700828,0.15,94943.0,94935.0,0.0008636]
[1733227701313,0.16065,94944.0,94935.0,0.0008636]
[1733227701733,0.210644,94947.0,94935.0,0.0008636]
[1733227701953,0.001,94942.0,94935.0,0.0008636]
[1733227702165,0.03620993,94947.0,94935.0,0.0008636]
[1733227702422,0.002,94943.0,94935.0,0.0008636]
[1733227702639,0.21065,94944.0,94935.0,0.0008636]
[1733227702640,0.004,94944.0,94935.0,0.0008636]
[1733227702855,0.03620993,94947.0,94935.0,0.0008636]
[1733227703071,0.21065,94944.0,94935.0,0.0008636]
[1733227703308,0.006,94942.0,94935.0,0.0008636]
[1733227703529,0.002,94942.0,94935.0,0.0008636]
[1733227704507,0.004,94944.0,94932.0,0.0732343]
[1733227705895,0.002,94942.0,94932.0,0.0732343]
[1733227706325,0.005,94942.0,94932.0,0.0732343]
[1733227706591,0.0428282,94944.0,94932.0,0.0732343]
[1733227706828,0.0478282,94944.0,94932.0,0.0732343]
[1733227707282,0.210652,94943.0,94932.0,0.0732343]
[1733227707498,0.07047692,94942.0,94932.0,0.0732343]
[1733227707719,0.06747692,94942.0,94932.0,0.0732343]
[1733227707941,0.210646,94946.0,94932.0,0.0732343]
[1733227708193,0.15,94947.0,94932.0,0.0732343]
[1733227708423,0.34629948,94954.0,94932.0,0.0732343]
[1733227708424,0.0017272,94952.0,94932.0,0.0732343]
[1733227708646,0.002,94944.0,94934.0,0.0772]
[1733227709094,0.10471259,94951.0,94934.0,0.0772]
[1733227709310,0.005,94944.0,94934.0,0.0772]
[1733227709970,0.01,94944.0,94934.0,0.0772]
[1733227710198,0.16826515,94952.0,94946.0,0.0792733]
[1733227710199,0.0017272,94952.0,94946.0,0.0792733]
[1733227710440,0.0017272,94952.0,94947.0,0.0463]
[1733227710663,0.0017272,94952.0,94948.0,0.0819]
[1733227710882,0.0017272,94952.0,94951.0,0.0819]
[1733227712224,0.0023126,94952.0,94951.0,0.0819]
[1733227712930,0.0033126,94952.0,94951.0,0.0819]
[1733227713449,0.0033126,94952.0,94951.0,0.1611733]
[1733227714129,0.0043126,94952.0,94951.0,0.1691733]
[1733227716913,0.02578403,94952.0,94951.0,0.1691733]
[1733227717611,0.02578403,94952.0,94951.0,0.16826309]
[1733227717863,0.02578403,94952.0,94951.0,0.1663866]
[1733227723364,0.02478403,94952.0,94951.0,0.1583866]
[1733227723803,0.02378403,94952.0,94951.0,0.1623866]
[1733227724025,0.02378403,94952.0,94951.0,0.1583866]
[1733227724463,0.02378403,94952.0,94951.0,0.1643866]
[1733227724891,0.02148171,94952.0,94951.0,0.1643866]
[1733227725752,0.02320891,94952.0,94951.0,0.1583866]
[1733227726204,0.02320891,94952.0,94951.0,0.1623866]
[1733227726935,0.02320891,94952.0,94951.0,0.1583866]
[1733227727379,0.02320891,94952.0,94951.0,0.1623866]
[1733227728507,0.02320891,94952.0,94951.0,0.06155391]
[1733227728934,0.02320891,94952.0,94951.0,0.03761631]
[1733227729717,0.02320891,94952.0,94951.0,0.03361631]
[1733227730074,0.02320891,94952.0,94951.0,0.03661631]
[1733227731144,0.02320891,94952.0,94951.0,0.11588961]
[1733227738662,0.02320891,94952.0,94951.0,0.003]
[1733227739353,0.02320891,94952.0,94946.0,0.05616503]
[1733227740796,0.00173748,94952.0,94946.0,0.0505893]
[1733227741311,0.00173748,94952.0,94938.0,0.05]
[1733227741312,0.00173748,94952.0,94951.0,0.0505893]
[1733227741575,0.00173748,94952.0,94951.0,0.1785893]
[1733227742623,0.00173748,94952.0,94951.0,0.1805893]
[1733227745050,0.00173748,94952.0,94951.0,0.39735341]
[1733227745276,0.00173748,94952.0,94951.0,0.39548932]
[1733227745504,0.09431465,94999.0,94980.0,0.0505893]
[1733227745728,0.42446439,95001.0,94980.0,0.0505893]
[1733227745729,0.0944107,94981.0,94980.0,0.1749893]
[1733227745949,0.11592615,94981.0,94980.0,0.1749893]
[1733227746843,0.26592615,94981.0,94980.0,0.1749893]
[1733227747054,0.17157399,94981.0,94980.0,0.1749893]
[1733227747274,0.15,94980.0,94965.0,0.05]
[1733227747486,0.15,94980.0,94974.0,0.0505893]
[1733227748339,0.03890419,94981.0,94974.0,0.0505893]
[1733227748556,5.854e-05,94981.0,94974.0,0.0505893]
[1733227748795,5.854e-05,94981.0,94980.0,0.004]
[1733227749212,5.854e-05,94981.0,94974.0,0.0505893]
[1733227749433,5.854e-05,94981.0,94974.0,0.0525893]
[1733227749640,5.854e-05,94981.0,94974.0,0.0545893]
[1733227749856,0.00178554,94981.0,94974.0,0.0545893]
[1733227750092,0.00178554,94981.0,94974.0,0.0505893]
[1733227750315,0.00178554,94981.0,94980.0,0.002]
[1733227750528,0.00178554,94981.0,94980.0,0.0779]
[1733227750950,0.02276357,94981.0,94980.0,0.0779]
[1733227751599,0.02276357,94981.0,94980.0,0.0799]
[1733227751817,0.02276357,94981.0,94980.0,0.002]
[1733227752966,0.02276357,94981.0,94980.0,0.004]
[1733227754073,0.02176357,94981.0,94980.0,0.004]
[1733227754533,0.02036852,94981.0,94980.0,0.004]
[1733227756344,0.15,94990.0,94980.0,0.004]
[1733227756580,0.15,94990.0,94980.0,0.00405854]
[1733227757465,0.15,94990.0,94980.0,5.854e-05]
[1733227757688,0.002728,94984.0,94980.0,5.854e-05]
[1733227757932,0.002728,94984.0,94980.0,0.00105854]
[1733227758156,0.0152728,94983.0,94980.0,0.00105854]
[1733227758402,0.0152728,94983.0,94980.0,5.854e-05]
[1733227759968,0.15,94982.0,94980.0,5.854e-05]
[1733227760219,0.360568,94981.0,94980.0,5.854e-05]
[1733227760461,0.20891348,94981.0,94980.0,5.854e-05]
[1733227760711,0.23045046,94981.0,94980.0,5.854e-05]
[1733227761155,0.15,94980.0,94967.0,0.03662493]
[1733227761850,0.15,94978.0,94967.0,0.03662493]
[1733227762933,0.004,94980.0,94967.0,0.03662493]
[1733227763447,0.15,94979.0,94967.0,0.03662493]
[1733227763680,0.07598498,94978.0,94967.0,0.03662493]
[1733227763917,0.15,94977.0,94966.0,0.03662493]
[1733227764148,0.15,94975.0,94966.0,0.03662493]
[1733227764376,0.15,94975.0,94965.0,0.0751]
[1733227764377,0.210583,94974.0,94965.0,0.0751]
[1733227764853,0.15,94975.0,94965.0,0.0751]
[1733227765074,0.05978661,94974.0,94965.0,0.0751]
[1733227765823,0.210586,94973.0,94965.0,0.0751]
[1733227766052,0.210586,94973.0,94946.0,0.0008636]
[1733227766053,0.15,94966.0,94954.0,0.0774]
[1733227766272,0.15,94966.0,94949.0,0.0774]
[1733227766273,0.15,94964.0,94949.0,0.0774]
[1733227766754,0.210621,94957.0,94949.0,0.0774]
[1733227766985,0.3816851,94956.0,94949.0,0.0774]
[1733227767209,0.210632,94953.0,94946.0,0.0008636]
[1733227767935,0.3816851,94956.0,94946.0,0.0008636]
[1733227768162,0.3816851,94956.0,94951.0,0.0018635]
[1733227768642,0.360632,94952.0,94951.0,0.0018635]
[1733227768877,0.43486401,94952.0,94951.0,0.0008635]
[1733227769353,0.43486401,94952.0,94951.0,0.0018635]
[1733227769354,0.5395766,94952.0,94951.0,0.0018635]
[1733227769813,0.5395766,94952.0,94951.0,0.0008635]
[1733227770050,0.32903729,94952.0,94951.0,0.0038635]
[1733227770281,0.32903729,94952.0,94951.0,0.0058635]
[1733227770722,0.32903729,94952.0,94951.0,0.0038635]
[1733227771155,0.34989829,94952.0,94951.0,0.0058635]
[1733227773473,0.34989829,94952.0,94951.0,0.0038635]
[1733227773910,0.34989829,94952.0,94951.0,0.0048635]
[1733227774327,0.34989829,94952.0,94951.0,0.0008635]
[1733227774618,0.35289829,94952.0,94951.0,0.0008635]
[1733227775053,0.34989829,94952.0,94951.0,0.0008635]
[1733227776652,0.35289829,94952.0,94951.0,0.0008635]
[1733227776876,0.35589829,94952.0,94951.0,0.0008635]
[1733227777092,0.32903729,94952.0,94951.0,0.0008635]
[1733227777333,0.33203729,94952.0,94951.0,0.0018635]
[1733227777550,0.33903729,94952.0,94951.0,0.0018635]
[1733227778634,0.26480528,94952.0,94951.0,0.0018635]
[1733227782758,0.28621507,94952.0,94951.0,0.0018635]
[1733227783510,0.63251455,94952.0,94951.0,0.0018635]
[1733227783740,0.73471455,94952.0,94951.0,0.0018635]
[1733227783997,0.89808962,94952.0,94951.0,0.0018635]
[1733227784243,1.00092108,94952.0,94951.0,0.0018635]
[1733227785480,0.97951129,94952.0,94951.0,0.0018635]
[1733227785952,1.12951129,94952.0,94951.0,0.0018635]
[1733227790336,1.15073437,94952.0,94951.0,0.0018635]
[1733227790793,0.15,94926.0,94925.0,0.05725781]
[1733227792214,0.15,94926.0,94925.0,0.06425781]
[1733227792461,0.151,94926.0,94925.0,0.06425781]
[1733227792678,0.151,94926.0,94925.0,0.007]
[1733227793628,0.91538714,94926.0,94925.0,0.007]
[1733227793849,0.99294034,94926.0,94925.0,0.007]
[1733227794496,0.99294034,94926.0,94920.0,6e-07]
[1733227794497,0.74827607,94921.0,94920.0,6e-07]
[1733227794718,0.85298866,94921.0,94920.0,6e-07]
[1733227795630,0.8741819,94921.0,94920.0,6e-07]
[1733227796062,0.8831819,94921.0,94920.0,0.001586]
[1733227796335,0.904244,94921.0,94920.0,0.001586]
[1733227796552,0.909244,94921.0,94920.0,0.001586]
[1733227796987,1.25554348,94921.0,94920.0,0.001586]
[1733227800172,1.18134348,94921.0,94920.0,0.001586]
[1733227800828,1.16015024,94921.0,94920.0,0.001586]
[1733227806058,1.01015024,94921.0,94920.0,0.001586]
[1733227806549,0.99677517,94921.0,94920.0,0.001586]
[1733227808404,1.16015024,94921.0,94920.0,0.001586]
[1733227809321,0.37409407,94913.0,94902.0,0.0767]
[1733227809537,0.77880666,94913.0,94912.0,0.00101229]
[1733227810225,0.77873016,94913.0,94912.0,0.00101229]
[1733227810449,1.12502964,94913.0,94912.0,0.00101229]
[1733227810686,1.2278611,94913.0,94912.0,0.00101229]
[1733227810913,1.2348611,94913.0,94912.0,0.00101229]
[1733227811347,1.2378611,94913.0,94912.0,0.00101229]
[1733227811792,1.2348611,94913.0,94912.0,0.00101229]
[1733227812244,1.2408611,94913.0,94912.0,0.00101229]
[1733227812472,1.2338611,94913.0,94912.0,0.00101229]
[1733227812974,1.2428611,94913.0,94912.0,0.00101229]
[1733227813221,1.2428611,94913.0,94912.0,2.9e-07]
[1733227813701,1.2338611,94913.0,94912.0,2.9e-07]
[1733227813956,1.2428611,94913.0,94912.0,2.9e-07]
[1733227814205,1.2278611,94913.0,94912.0,2.9e-07]
[1733227814632,1.2448611,94913.0,94912.0,2.9e-07]
[1733227815095,1.2368611,94913.0,94912.0,2.9e-07]
[1733227815318,1.23674943,94913.0,94912.0,2.9e-07]
[1733227815556,0.1631869,94899.0,94889.0,0.05491844]
[1733227815807,0.36077,94890.0,94889.0,0.05491844]
[1733227816013,0.15,94889.0,94888.0,0.00083905]
[1733227816250,0.25471259,94889.0,94888.0,0.0010131]
[1733227817174,0.26071259,94889.0,94888.0,0.0010131]
[1733227817397,0.3280092,94889.0,94888.0,0.0010131]
[1733227818555,0.3310092,94889.0,94888.0,0.0010131]
[1733227819523,0.4941961,94889.0,94888.0,0.0010131]
[1733227820404,0.84049558,94889.0,94888.0,0.0010131]
[1733227821377,0.99049558,94889.0,94888.0,0.0010131]
[1733227822361,0.82730868,94889.0,94888.0,0.0010131]
[1733227822592,0.82730868,94889.0,94888.0,0.0778131]
[1733227824246,0.67730868,94889.0,94888.0,0.0778131]
[1733227824460,0.82730868,94889.0,94888.0,0.0778131]
[1733227824672,0.82730868,94889.0,94888.0,0.1271131]
[1733227825340,0.67730868,94889.0,94888.0,0.1271131]
[1733227825832,0.82730868,94889.0,94888.0,0.1271131]
[1733227826516,0.159,94889.0,94888.0,0.1271131]
[1733227831776,0.16414158,94889.0,94888.0,0.1271131]
[1733227832238,0.16414158,94889.0,94888.0,0.1279772]
[1733227834553,0.01414158,94889.0,94888.0,0.1279772]
[1733227835122,0.22491358,94889.0,94888.0,0.1279772]
[1733227835329,0.369772,94889.0,94888.0,0.1279772]
[1733227835555,0.159,94889.0,94888.0,0.1279772]
[1733227835788,0.369772,94889.0,94888.0,0.1279772]
[1733227836002,0.366772,94889.0,94888.0,0.1279772]
[1733227836227,0.368772,94889.0,94888.0,0.1279772]
[1733227836897,0.362772,94889.0,94888.0,0.1279772]
[1733227837330,0.366772,94889.0,94888.0,0.1279772]
[1733227840026,0.3719324,94889.0,94888.0,0.1279772]
[1733227841541,0.0111604,94889.0,94888.0,0.1279772]
[1733227841981,0.0111604,94889.0,94888.0,0.4255643]
[1733227842424,0.210718,94914.0,94888.0,0.4255643]
[1733227842425,0.210718,94914.0,94888.0,0.23595932]
[1733227842703,0.210718,94914.0,94898.0,0.2129131]
[1733227842960,0.210712,94917.0,94898.0,0.2129131]
[1733227843201,0.2124296,94921.0,94898.0,0.2129131]
[1733227843202,0.0017276,94921.0,94898.0,0.31949072]
[1733227843424,0.2124286,94921.0,94898.0,0.31762569]
[1733227843871,0.0017276,94921.0,94898.0,0.31762569]
[1733227844548,0.1517276,94921.0,94898.0,0.31862569]
[1733227845016,0.0027282,94899.0,94898.0,0.31862569]
[1733227845953,0.0017282,94899.0,94898.0,0.31862569]
[1733227846157,0.0026667,94899.0,94898.0,0.31962569]
[1733227846384,0.0026667,94899.0,94898.0,0.31862569]
[1733227846853,0.0026667,94899.0,94898.0,0.32362569]
[1733227846854,0.0036667,94899.0,94898.0,0.32362569]
[1733227847078,0.0036667,94899.0,94898.0,0.2139131]